bitfinex/quotes_BTCUSD_20230109
["timestamp","ask_amount","ask_price","bid_price","bid_amount"]
[1673235931733,0.87051097,17232.0,17228.0,0.037792]
[1673235931984,0.02191098,17232.0,17228.0,0.206892]
[1673235932235,0.7016462,17232.0,17228.0,0.206892]
[1673235932484,0.249959,17231.0,17228.0,0.037792]
[1673235932775,1.67972162,17232.0,17227.0,0.037792]
[1673235933028,0.26699686,17231.0,17227.0,0.037792]
[1673235933368,0.01703786,17231.0,17227.0,0.49698329]
[1673235933550,0.01703786,17231.0,17227.0,0.66458329]
[1673235934070,0.01703786,17231.0,17227.0,0.037792]
[1673235934313,0.1691,17230.0,17227.0,0.037792]
[1673235935354,0.4593,17230.0,17227.0,0.037792]
[1673235935609,0.45924,17230.0,17228.0,0.037792]
[1673235935869,0.649959,17229.0,17228.0,0.037792]
[1673235936360,0.249959,17229.0,17228.0,0.037792]
[1673235936618,0.16904,17230.0,17228.0,0.037792]
[1673235937646,0.16904,17230.0,17229.0,0.037792]
[1673235937918,0.818999,17230.0,17229.0,0.037792]
[1673235938654,0.818999,17230.0,17226.0,0.037792]
[1673235938908,0.39994,17229.0,17226.0,0.037792]
[1673235940442,0.1686,17228.0,17226.0,0.037792]
[1673235940690,0.1686,17228.0,17225.0,0.037792]
[1673235942723,0.82334078,17227.0,17226.0,0.037792]
[1673235943012,1.07323978,17227.0,17226.0,0.037792]
[1673235943822,0.4,17226.0,17223.0,0.437792]
[1673235944082,1.07323978,17227.0,17223.0,0.437792]
[1673235944083,0.82328078,17227.0,17223.0,0.437792]
[1673235944573,0.29027,17226.0,17223.0,0.437792]
[1673235945046,0.45925,17227.0,17223.0,0.437792]
[1673235945558,0.45925,17227.0,17223.0,0.8973252]
[1673235945805,0.45925,17227.0,17223.0,1.07115072]
[1673235946321,1.08043,17228.0,17223.0,1.07115072]
[1673235946572,0.1691,17227.0,17223.0,1.07115072]
[1673235947077,0.1691,17227.0,17223.0,1.331889]
[1673235947322,0.1691,17227.0,17224.0,0.4578469]
[1673235947570,0.1691,17227.0,17225.0,0.037792]
[1673235950840,0.1691,17227.0,17226.0,0.037792]
[1673235952959,0.1691,17227.0,17224.0,0.037792]
[1673235954985,0.1686,17228.0,17224.0,0.037792]
[1673235959319,0.1691,17228.0,17226.0,0.037792]
[1673235959565,0.249959,17227.0,17226.0,0.037792]
[1673235959821,0.649959,17227.0,17226.0,0.037792]
[1673235960549,0.4,17227.0,17226.0,0.037792]
[1673235960795,0.7513931,17228.0,17226.0,0.037792]
[1673235961287,0.249959,17227.0,17224.0,0.037792]
[1673235961537,0.4,17227.0,17224.0,0.037792]
[1673235962019,0.4,17227.0,17225.0,0.00011856]
[1673235962267,0.4,17227.0,17224.0,0.037792]
[1673235963241,0.69025,17227.0,17224.0,0.037792]
[1673235963964,0.69025,17227.0,17225.0,0.00011856]
[1673235964308,0.249959,17226.0,17225.0,0.00011856]
[1673235964558,0.249959,17226.0,17224.0,0.037792]
[1673235964803,0.41793,17227.0,17224.0,0.037792]
[1673235965052,0.41793,17227.0,17225.0,0.037792]
[1673235965302,0.4,17227.0,17225.0,0.037792]
[1673235965543,0.249959,17226.0,17225.0,0.037792]
[1673235966057,0.249959,17226.0,17223.0,0.037792]
[1673235966299,0.4,17227.0,17223.0,0.037792]
[1673235966780,0.249959,17226.0,17223.0,0.037792]
[1673235967026,1.10233813,17227.0,17223.0,0.037792]
[1673235967509,0.249959,17226.0,17223.0,0.037792]
[1673235967755,1.10233813,17227.0,17223.0,0.037792]
[1673235968009,1.10045899,17227.0,17223.0,0.037792]
[1673235968907,0.249959,17226.0,17223.0,0.037792]
[1673235969182,1.10045899,17227.0,17224.0,0.00011856]
[1673235969714,0.249959,17226.0,17224.0,0.00011856]
[1673235969961,1.10045899,17227.0,17223.0,0.037792]
[1673235970792,0.300408,17224.0,17221.0,0.00224409]
[1673235971013,0.1691,17223.0,17221.0,0.00224409]
[1673235971289,0.249959,17222.0,17221.0,0.00224409]
[1673235971541,0.1691,17223.0,17221.0,0.00224409]
[1673235971847,0.1691,17223.0,17221.0,0.00209409]
[1673235972100,0.12907205,17223.0,17222.0,0.4]
[1673235972599,0.12907205,17223.0,17221.0,0.00209409]
[1673235980472,1.741956,17222.0,17221.0,0.00209409]
[1673235980964,2.25112714,17222.0,17221.0,0.00209409]
[1673235981213,2.58932714,17222.0,17221.0,0.00209409]
[1673235981469,2.98932714,17222.0,17221.0,0.00209409]
[1673235982745,2.58932714,17222.0,17221.0,0.00209409]
[1673235983000,2.98932714,17222.0,17221.0,0.00209409]
[1673235985307,2.69930767,17222.0,17221.0,0.00209409]
[1673235985831,2.69930767,17222.0,17221.0,0.00173245]
[1673235990871,2.71418208,17222.0,17221.0,0.00173245]
[1673235992638,2.31418208,17222.0,17221.0,0.00173245]
[1673235993155,2.51418208,17222.0,17221.0,0.00173245]
[1673235997938,2.80452208,17222.0,17221.0,0.00173245]
[1673235998435,2.51450374,17222.0,17221.0,0.00173245]
[1673236002013,2.31450374,17222.0,17221.0,0.00173245]
[1673236002364,2.51450374,17222.0,17221.0,0.00173245]
[1673236005763,2.31450374,17222.0,17221.0,0.00186772]
[1673236006010,2.31450374,17222.0,17221.0,0.00173245]
[1673236006526,2.61450374,17222.0,17221.0,0.00173245]
[1673236010293,2.27630374,17222.0,17221.0,0.00173245]
[1673236011338,2.56693855,17222.0,17221.0,0.00173245]
[1673236013309,2.56694855,17222.0,17221.0,0.00173245]
[1673236013801,2.86694855,17222.0,17221.0,0.00173245]
[1673236015053,3.03594855,17222.0,17221.0,0.00173245]
[1673236015301,3.68106049,17222.0,17221.0,0.00173245]
[1673236017058,3.03594855,17222.0,17221.0,0.00173245]
[1673236017303,3.68109346,17222.0,17221.0,0.00173245]
[1673236018562,3.03594855,17222.0,17221.0,0.00173245]
[1673236018801,2.73594855,17222.0,17221.0,0.00173245]
[1673236020270,3.38115961,17222.0,17221.0,0.00173245]
[1673236020509,3.68114527,17222.0,17221.0,0.00173245]
[1673236022021,2.73594855,17222.0,17221.0,0.00173245]
[1673236022288,3.3805402,17222.0,17221.0,0.00173245]
[1673236022794,3.3805249,17222.0,17221.0,0.00173245]
[1673236023055,2.73594855,17222.0,17221.0,0.00173245]
[1673236024045,2.4459328,17222.0,17221.0,0.00173245]
[1673236024295,3.09054334,17222.0,17221.0,0.00173245]
[1673236025052,2.4459328,17222.0,17221.0,0.00173245]
[1673236025537,3.09054377,17222.0,17221.0,0.00173245]
[1673236025768,2.4459328,17222.0,17221.0,0.00173245]
[1673236026280,3.09054623,17222.0,17221.0,0.00173245]
[1673236028757,3.39054623,17222.0,17221.0,0.00173245]
[1673236029535,3.09054623,17222.0,17221.0,0.00173245]
[1673236030048,3.39054623,17222.0,17221.0,0.00173245]
[1673236030321,3.55964623,17222.0,17221.0,0.00173245]
[1673236031805,3.25964623,17222.0,17221.0,0.00173245]
[1673236032297,3.55964623,17222.0,17221.0,0.00173245]
[1673236032772,2.79054623,17222.0,17221.0,0.00173245]
[1673236033016,2.1459328,17222.0,17221.0,0.00173245]
[1673236033516,2.4459328,17222.0,17221.0,0.00173245]
[1673236034029,2.1459328,17222.0,17221.0,0.00173245]
[1673236034295,1.9769328,17222.0,17221.0,0.00173245]
[1673236036062,2.1769328,17222.0,17221.0,0.00173245]
[1673236037062,1.46808272,17222.0,17221.0,0.00173245]
[1673236041313,0.88743072,17222.0,17221.0,0.00173245]
[1673236041558,0.30677872,17222.0,17221.0,0.00173245]
[1673236042324,0.92385256,17225.0,17222.0,0.29190431]
[1673236042325,0.580614,17224.0,17222.0,0.29190431]
[1673236042606,0.580614,17224.0,17223.0,0.363802]
[1673236042868,0.580614,17224.0,17222.0,0.74767809]
[1673236043124,0.580614,17224.0,17222.0,0.29190431]
[1673236044905,1.161199,17224.0,17222.0,0.29190431]
[1673236045401,1.161199,17224.0,17222.0,0.29215526]
[1673236047598,1.161199,17224.0,17222.0,0.29190431]
[1673236050073,0.87121921,17224.0,17222.0,0.29190431]
[1673236050578,0.87121921,17224.0,17222.0,0.29215526]
[1673236052530,0.87121921,17224.0,17222.0,0.29190431]
[1673236057081,0.67399975,17223.0,17222.0,0.29190431]
[1673236057336,0.96432975,17223.0,17222.0,0.29190431]
[1673236057605,2.52556575,17223.0,17222.0,0.29190431]
[1673236060363,2.69456575,17223.0,17222.0,0.29190431]
[1673236060650,2.72945077,17223.0,17222.0,0.29190431]
[1673236061126,3.02945077,17223.0,17222.0,0.29190431]
[1673236061865,2.75705077,17223.0,17222.0,0.29190431]
[1673236062864,3.02945077,17223.0,17222.0,0.29190431]
[1673236063873,3.19855077,17223.0,17222.0,0.29190431]
[1673236064133,3.96944681,17223.0,17222.0,0.29190431]
[1673236064388,3.67945162,17223.0,17222.0,0.29190431]
[1673236065890,3.6445666,17223.0,17222.0,0.29190431]
[1673236068918,4.10157622,17223.0,17222.0,0.29190431]
[1673236069163,4.10159622,17223.0,17222.0,0.29190431]
[1673236070647,3.81124622,17223.0,17222.0,0.29190431]
[1673236070892,4.10159622,17223.0,17222.0,0.29190431]
[1673236071390,4.73386728,17223.0,17222.0,0.29190431]
[1673236071882,4.10159622,17223.0,17222.0,0.29190431]
[1673236073653,4.73360715,17223.0,17222.0,0.29190431]
[1673236075137,4.10159622,17223.0,17222.0,0.29190431]
[1673236080571,4.73356702,17223.0,17222.0,0.29190431]
[1673236082048,5.60983467,17223.0,17222.0,0.29190431]
[1673236086923,5.60983467,17223.0,17222.0,0.29182479]
[1673236090055,5.62303242,17223.0,17222.0,0.29182479]
[1673236091390,5.45403242,17223.0,17222.0,0.29182479]
[1673236093412,5.4191474,17223.0,17222.0,0.29182479]
[1673236097134,5.45403242,17223.0,17222.0,0.29182479]
[1673236102891,5.16368242,17223.0,17222.0,0.29182479]
[1673236103153,5.45405242,17223.0,17222.0,0.29182479]
[1673236104990,5.28495242,17223.0,17222.0,0.29182479]
[1673236109461,0.4,17222.0,17221.0,0.00173245]
[1673236109721,1.48387455,17222.0,17221.0,0.00173245]
[1673236109984,3.93014705,17222.0,17221.0,0.00173245]
[1673236111212,4.22052705,17222.0,17221.0,0.00173245]
[1673236120989,4.51732935,17222.0,17219.0,0.00209409]
[1673236121247,0.3382,17220.0,17219.0,0.00209409]
[1673236121493,3.97644741,17220.0,17219.0,0.00209409]
[1673236121754,4.60841821,17220.0,17219.0,0.00209409]
[1673236123794,5.16216687,17220.0,17219.0,0.00209409]
[1673236127348,1.04992968,17219.0,17217.0,0.00337319]
[1673236127599,2.613568,17218.0,17217.0,0.00337319]
[1673236127854,2.78154619,17218.0,17217.0,0.00337319]
[1673236128942,2.78152619,17218.0,17217.0,0.00337319]
[1673236132699,2.65891899,17218.0,17217.0,0.00337319]
[1673236134687,2.65891899,17218.0,17217.0,0.0034574]
[1673236135687,2.65891899,17218.0,17217.0,0.00337319]
[1673236138938,2.64280402,17218.0,17217.0,0.00337319]
[1673236139178,2.64280402,17218.0,17217.0,0.0034574]
[1673236139420,2.64280402,17218.0,17217.0,0.00337319]
[1673236141918,2.64280402,17218.0,17217.0,0.0034574]
[1673236142666,2.64280402,17218.0,17217.0,0.00337319]
[1673236146581,3.27453199,17218.0,17217.0,0.00337319]
[1673236146829,2.98442602,17218.0,17217.0,0.00337319]
[1673236147077,3.28442602,17218.0,17217.0,0.00337319]
[1673236147325,4.1016711,17218.0,17217.0,0.00337319]
[1673236148562,4.55886944,17218.0,17217.0,0.00337319]
[1673236148807,4.4386711,17218.0,17217.0,0.00337319]
[1673236154010,4.47355612,17218.0,17217.0,0.00337319]
[1673236156497,4.53423875,17218.0,17217.0,0.00337319]
[1673236157810,3.71699367,17218.0,17217.0,0.00337319]
[1673236158553,4.53403779,17218.0,17217.0,0.00337319]
[1673236162033,4.53408779,17218.0,17217.0,0.00337319]
[1673236163525,4.49920277,17218.0,17217.0,0.00337319]
[1673236163768,3.68215865,17218.0,17217.0,0.00337319]
[1673236164236,3.38215865,17218.0,17217.0,0.00337319]
[1673236164518,3.32147602,17218.0,17217.0,0.00337319]
[1673236164759,3.62147602,17218.0,17217.0,0.00337319]
[1673236165009,3.45287602,17218.0,17217.0,0.00337319]
[1673236167246,3.45286602,17218.0,17217.0,0.00337319]
[1673236168113,3.45156602,17218.0,17217.0,0.00337319]
[1673236173682,3.43401564,17218.0,17217.0,0.00337319]
[1673236175661,3.13401564,17218.0,17217.0,0.00337319]
[1673236175908,3.13401564,17218.0,17217.0,0.00349595]
[1673236175909,2.84357564,17218.0,17217.0,0.00349595]
[1673236176160,2.67517564,17218.0,17217.0,0.00337319]
[1673236188020,2.96585985,17218.0,17217.0,0.00337319]
[1673236195403,3.25626985,17218.0,17217.0,0.00337319]
[1673236200107,4.16653936,17218.0,17217.0,0.00337319]
[1673236200345,3.25626985,17218.0,17217.0,0.00337319]
[1673236200833,2.96616814,17218.0,17217.0,0.00337319]
[1673236201342,2.96143814,17218.0,17217.0,0.00337319]
[1673236201583,3.87170905,17218.0,17217.0,0.00337319]
[1673236202082,4.17170905,17218.0,17217.0,0.00337319]
[1673236206612,3.87170905,17218.0,17217.0,0.00337319]
[1673236207111,4.17170905,17218.0,17217.0,0.00337319]
[1673236209905,3.87170905,17218.0,17217.0,0.00337319]
[1673236210632,2.96143814,17218.0,17217.0,0.00337319]
[1673236210885,3.87169187,17218.0,17217.0,0.00337319]
[1673236211141,2.96143814,17218.0,17217.0,0.00337319]
[1673236213853,3.8717214,17218.0,17217.0,0.00337319]
[1673236214105,4.16240803,17218.0,17217.0,0.00337319]
[1673236215456,3.25212477,17218.0,17217.0,0.00337319]
[1673236215713,4.1624214,17218.0,17217.0,0.00337319]
[1673236216594,3.25212477,17218.0,17217.0,0.00337319]
[1673236218913,3.25212477,17218.0,17217.0,0.00349595]
[1673236219154,3.25212477,17218.0,17217.0,0.00337319]
[1673236227054,2.96202548,17218.0,17217.0,0.00337319]
[1673236230353,2.97383624,17218.0,17217.0,0.00337319]
[1673236239821,3.26452503,17218.0,17217.0,0.00337319]
[1673236240821,2.84531203,17218.0,17217.0,0.00337319]
[1673236242036,2.84530203,17218.0,17217.0,0.00337319]
[1673236247657,2.84531203,17218.0,17217.0,0.00337319]
[1673236248493,2.57283203,17218.0,17217.0,0.00337319]
[1673236248974,2.55490203,17218.0,17217.0,0.00337319]
[1673236249216,2.57283203,17218.0,17217.0,0.00337319]
[1673236251119,2.84530203,17218.0,17217.0,0.00337319]
[1673236252197,3.30196679,17218.0,17217.0,0.00337319]
[1673236252450,3.60196679,17218.0,17217.0,0.00337319]
[1673236252714,4.51221889,17218.0,17217.0,0.00337319]
[1673236252969,4.21223889,17218.0,17217.0,0.00337319]
[1673236253293,3.460477,17218.0,17217.0,0.00337319]
[1673236253552,3.9154589,17218.0,17217.0,0.00337319]
[1673236253838,3.00518832,17218.0,17217.0,0.00337319]
[1673236254086,3.46049736,17218.0,17217.0,0.00337319]
[1673236254595,3.91536539,17218.0,17217.0,0.00337319]
[1673236255635,4.21536539,17218.0,17217.0,0.00337319]
[1673236255864,4.21535539,17218.0,17217.0,0.00337319]
[1673236256740,3.77056961,17218.0,17217.0,0.0058404]
[1673236257012,2.86029715,17218.0,17217.0,0.00337319]
[1673236257267,3.77055725,17218.0,17217.0,0.00337319]
[1673236257518,2.86029715,17218.0,17217.0,0.00337319]
[1673236261277,3.15069715,17218.0,17217.0,0.00337319]
[1673236266166,2.86060136,17218.0,17217.0,0.00337319]
[1673236273664,2.86060136,17218.0,17217.0,0.00349654]
[1673236273925,2.86060136,17218.0,17217.0,0.00337319]
[1673236277470,2.86060136,17218.0,17217.0,0.00349654]
[1673236277709,2.86060136,17218.0,17217.0,0.00337319]
[1673236278968,3.15129338,17218.0,17217.0,0.00337319]
[1673236281409,4.15477991,17218.0,17217.0,0.00337319]
[1673236281662,3.15129338,17218.0,17217.0,0.00337319]
[1673236286452,2.57050638,17218.0,17217.0,0.00337319]
[1673236287477,2.28010638,17218.0,17217.0,0.00337319]
[1673236291578,1.99001275,17218.0,17217.0,0.00337319]
[1673236292918,2.28041275,17218.0,17217.0,0.00337319]
[1673236295335,2.73503397,17218.0,17217.0,0.00337319]
[1673236295589,3.78524371,17218.0,17217.0,0.00337319]
[1673236295835,3.33062249,17218.0,17217.0,0.00337319]
[1673236296328,2.28041275,17218.0,17217.0,0.00337319]
[1673236298791,3.33059256,17218.0,17217.0,0.00337319]
[1673236299899,3.33058261,17218.0,17217.0,0.00337319]
[1673236300153,2.28041275,17218.0,17217.0,0.00337319]
[1673236301161,3.33058408,17218.0,17217.0,0.00337319]
[1673236301398,2.28041275,17218.0,17217.0,0.00337319]
[1673236302672,1.98801275,17218.0,17217.0,0.00337319]
[1673236302925,2.27842275,17218.0,17217.0,0.00337319]
[1673236303185,3.20214397,17218.0,17217.0,0.00337319]
[1673236303441,4.25223036,17218.0,17217.0,0.00337319]
[1673236304502,4.54292484,17218.0,17217.0,0.00337319]
[1673236305247,4.57780986,17218.0,17217.0,0.00337319]
[1673236305501,4.12318864,17218.0,17217.0,0.00337319]
[1673236306738,2.77310225,17218.0,17217.0,0.00337319]
[1673236307720,3.07310225,17218.0,17217.0,0.00337319]
[1673236307971,2.77310225,17218.0,17217.0,0.00337319]
[1673236308467,3.07310225,17218.0,17217.0,0.00337319]
[1673236309467,2.77310225,17218.0,17217.0,0.00337319]
[1673236310935,3.07310225,17218.0,17217.0,0.00337319]
[1673236311185,4.57607784,17218.0,17217.0,0.00337319]
[1673236314478,3.52596513,17218.0,17217.0,0.00337319]
[1673236314965,4.40697573,17218.0,17217.0,0.00337319]
[1673236316181,3.35686513,17218.0,17217.0,0.00337319]
[1673236317435,4.11689828,17218.0,17217.0,0.00337319]
[1673236317959,3.06677372,17218.0,17217.0,0.00337319]
[1673236318690,4.1168901,17218.0,17217.0,0.00337319]
[1673236320521,3.06677372,17218.0,17217.0,0.00337319]
[1673236321038,4.11689788,17218.0,17217.0,0.00337319]
[1673236321534,4.69768488,17218.0,17217.0,0.00337319]
[1673236324263,3.64756072,17218.0,17217.0,0.00337319]
[1673236324747,2.89469784,17218.0,17217.0,0.00337319]
[1673236324992,2.85981282,17218.0,17217.0,0.00337319]
[1673236325484,3.15981282,17218.0,17217.0,0.00337319]
[1673236326244,3.6133107,17218.0,17217.0,0.00337319]
[1673236327250,2.85981282,17218.0,17217.0,0.00337319]
[1673236327752,3.15981282,17218.0,17217.0,0.00337319]
[1673236328238,2.85981282,17218.0,17217.0,0.00337319]
[1673236330223,3.15050953,17218.0,17217.0,0.00337319]
[1673236330727,3.45050953,17218.0,17217.0,0.00337319]
[1673236331496,3.15050953,17218.0,17217.0,0.00337319]
[1673236334078,3.45050953,17218.0,17217.0,0.00337319]
[1673236334289,3.45051953,17218.0,17217.0,0.00337319]
[1673236334818,3.15051953,17218.0,17217.0,0.00337319]
[1673236336343,3.15050953,17218.0,17217.0,0.00337319]
[1673236338328,2.25960728,17218.0,17217.0,0.00337319]
[1673236338590,1.67882028,17218.0,17217.0,0.32974821]
[1673236339340,1.67882028,17218.0,17217.0,0.00337319]
[1673236340661,1.09803328,17218.0,17217.0,0.34847736]
[1673236341160,0.18246747,17218.0,17217.0,1.31464316]
[1673236341403,0.18246747,17218.0,17217.0,1.05390488]
[1673236341653,0.18246747,17218.0,17217.0,0.88007936]
[1673236341898,0.18246747,17218.0,17217.0,0.51627736]
[1673236342144,0.18246747,17218.0,17217.0,0.5188673]
[1673236342397,0.18246747,17218.0,17217.0,0.8826693]
[1673236342643,0.580757,17219.0,17217.0,0.8826693]
[1673236342903,0.580757,17219.0,17217.0,0.5188673]
[1673236343151,0.2906681,17219.0,17218.0,0.33375098]
[1673236353199,6.580752,17220.0,17218.0,0.33375098]
[1673236355977,6.29068102,17220.0,17218.0,0.33375098]
[1673236356721,6.29868102,17220.0,17218.0,0.42575098]
[1673236357716,6.87940102,17220.0,17218.0,0.42575098]
[1673236358217,6.87140102,17220.0,17218.0,0.33375098]
[1673236358712,6.87140102,17220.0,17218.0,0.42575098]
[1673236358964,6.87940102,17220.0,17218.0,0.42575098]
[1673236361673,6.87940102,17220.0,17219.0,0.00012332]
[1673236362132,6.87940102,17220.0,17218.0,0.42575098]
[1673236362346,6.87934102,17220.0,17218.0,0.42575098]
[1673236362712,6.87134102,17220.0,17218.0,0.33375098]
[1673236363736,6.87934102,17220.0,17219.0,0.00012332]
[1673236363986,6.87934102,17220.0,17218.0,0.42575098]
[1673236364713,7.33705842,17220.0,17218.0,0.42575098]
[1673236364965,6.87934102,17220.0,17218.0,0.42575098]
[1673236365455,6.87134102,17220.0,17218.0,0.33375098]
[1673236365716,7.61942842,17220.0,17218.0,0.092]
[1673236365969,0.58433104,17219.0,17218.0,0.092]
[1673236366211,2.14583704,17219.0,17217.0,0.00337319]
[1673236367287,1.74583704,17219.0,17217.0,0.00337319]
[1673236368055,1.74583704,17219.0,17217.0,0.33126047]
[1673236368577,1.75483704,17219.0,17217.0,0.41626047]
[1673236368835,1.161506,17219.0,17217.0,0.33126047]
[1673236369094,1.170506,17219.0,17217.0,0.41626047]
[1673236369418,1.170506,17219.0,17217.0,0.33126047]
[1673236369419,1.161506,17219.0,17217.0,0.33126047]
[1673236369597,1.170506,17219.0,17217.0,0.41626047]
[1673236369844,1.161506,17219.0,17218.0,0.00012333]
[1673236370092,1.170506,17219.0,17217.0,0.41626047]
[1673236370377,1.161506,17219.0,17217.0,0.33126047]
[1673236370645,1.170506,17219.0,17217.0,0.41626047]
[1673236370873,1.170506,17219.0,17217.0,0.4163838]
[1673236371371,1.161506,17219.0,17217.0,0.3313838]
[1673236371627,1.170506,17219.0,17217.0,0.4163838]
[1673236371880,1.161506,17219.0,17217.0,0.3313838]
[1673236372124,1.170506,17219.0,17217.0,0.4163838]
[1673236372371,1.161506,17219.0,17217.0,0.33126047]
[1673236372624,1.170506,17219.0,17217.0,0.41626047]
[1673236372838,1.161506,17219.0,17217.0,0.33126047]
[1673236373111,1.161506,17219.0,17217.0,0.41626047]
[1673236373112,1.451886,17219.0,17217.0,0.41626047]
[1673236373375,1.460886,17219.0,17217.0,0.41626047]
[1673236374318,1.451886,17219.0,17217.0,0.33126047]
[1673236374611,1.451886,17219.0,17217.0,0.41626047]
[1673236374852,1.460886,17219.0,17217.0,0.41626047]
[1673236376382,1.460886,17219.0,17217.0,0.4163838]
[1673236376595,1.460886,17219.0,17217.0,0.41626047]
[1673236377379,1.460896,17219.0,17217.0,0.08837319]
[1673236377872,1.460896,17219.0,17217.0,0.08849652]
[1673236378904,1.460896,17219.0,17217.0,0.08837319]
[1673236381167,1.460896,17219.0,17218.0,0.00012333]
[1673236381417,1.860896,17219.0,17218.0,0.00012333]
[1673236381673,1.460896,17219.0,17217.0,0.08837319]
[1673236381920,1.17081034,17219.0,17217.0,0.08837319]
[1673236382133,1.16181034,17219.0,17218.0,0.00012333]
[1673236382413,1.17081034,17219.0,17217.0,0.00337319]
[1673236382933,1.17981034,17219.0,17217.0,0.08837319]
[1673236383450,1.17981034,17219.0,17217.0,0.08849652]
[1673236383672,1.16181034,17219.0,17217.0,0.00349652]
[1673236383960,1.17081034,17219.0,17218.0,0.085]
[1673236384219,1.16181034,17219.0,17217.0,0.00349652]
[1673236384516,1.17081034,17219.0,17217.0,0.08849652]
[1673236386444,1.17081034,17219.0,17217.0,0.08837319]
[1673236387679,1.6297462,17219.0,17217.0,0.08837319]
[1673236387944,1.17081034,17219.0,17217.0,0.08837319]
[1673236388190,1.6297462,17219.0,17217.0,0.08837319]
[1673236389446,0.29041,17218.0,17217.0,0.08837319]
[1673236389954,1.451984,17218.0,17217.0,0.08837319]
[1673236390726,1.451984,17218.0,17217.0,0.00337319]
[1673236390992,1.660984,17218.0,17217.0,0.08837319]
[1673236393035,1.460984,17218.0,17217.0,0.08837319]
[1673236393269,1.170574,17218.0,17217.0,0.08837319]
[1673236393532,1.460984,17218.0,17217.0,0.08837319]
[1673236394284,2.92094987,17218.0,17217.0,0.08837319]
[1673236394529,2.66575031,17218.0,17217.0,0.08837319]
[1673236396810,2.66576031,17218.0,17217.0,0.08837319]
[1673236402737,3.24654731,17218.0,17217.0,0.08837319]
[1673236403456,3.21166229,17218.0,17217.0,0.08837319]
[1673236406454,3.24654731,17218.0,17217.0,0.08837319]
[1673236407681,2.95646378,17218.0,17217.0,0.08837319]
[1673236407928,2.94746378,17218.0,17217.0,0.00337319]
[1673236408427,2.95746378,17218.0,17217.0,0.08037319]
[1673236408924,2.94746378,17218.0,17217.0,0.00337319]
[1673236409406,2.94746378,17218.0,17217.0,0.08037319]
[1673236409658,2.95746378,17218.0,17217.0,0.08037319]
[1673236410163,2.95747378,17218.0,17217.0,0.08037319]
[1673236410898,2.68497378,17218.0,17217.0,0.08037319]
[1673236411155,2.95747378,17218.0,17217.0,0.08037319]
[1673236411394,2.92258876,17218.0,17217.0,0.08037319]
[1673236413093,2.92259876,17218.0,17217.0,0.08037319]
[1673236416784,2.92259876,17218.0,17214.0,0.61261471]
[1673236417012,1.0743311,17217.0,17213.0,2.11672763]
[1673236417252,1.742583,17216.0,17213.0,2.11672763]
[1673236417742,1.742583,17216.0,17213.0,2.11657763]
[1673236417976,1.742583,17216.0,17213.0,1.21957763]
[1673236419455,1.755583,17216.0,17213.0,1.22657763]
[1673236419725,1.742583,17216.0,17213.0,1.21957763]
[1673236420761,1.4524166,17216.0,17213.0,1.21957763]
[1673236420999,2.13239213,17216.0,17213.0,1.04575211]
[1673236421243,2.13239213,17216.0,17213.0,1.21957763]
[1673236421486,2.13239213,17216.0,17213.0,1.04575211]
[1673236422271,2.14539213,17216.0,17213.0,1.05275211]
[1673236422532,2.13239213,17216.0,17213.0,1.04575211]
[1673236422787,2.14539213,17216.0,17213.0,1.05275211]
[1673236424262,2.13239213,17216.0,17213.0,1.04575211]
[1673236424750,0.58314991,17215.0,17213.0,0.57856457]
[1673236425006,0.58314991,17215.0,17213.0,0.57156457]
[1673236425247,0.58314991,17215.0,17213.0,0.57856457]
[1673236425248,1.161844,17214.0,17213.0,0.57856457]
[1673236425495,1.161844,17214.0,17213.0,0.57391515]
[1673236425770,1.161844,17214.0,17213.0,0.57156457]
[1673236426804,1.161844,17214.0,17213.0,0.57391515]
[1673236427041,1.174844,17214.0,17213.0,0.57856457]
[1673236427284,1.174844,17214.0,17213.0,0.57156457]
[1673236427851,1.161844,17214.0,17213.0,0.57156457]
[1673236428041,1.161844,17214.0,17213.0,0.57856457]
[1673236428303,1.174844,17214.0,17213.0,0.57156457]
[1673236428548,1.187844,17214.0,17213.0,0.57856457]
[1673236428790,1.161844,17214.0,17213.0,0.57156457]
[1673236429310,1.174844,17214.0,17213.0,0.57856457]
[1673236429570,1.174844,17214.0,17213.0,0.00946457]
[1673236429571,1.89263271,17214.0,17213.0,0.00946457]
[1673236430075,1.87963271,17214.0,17213.0,0.00246457]
[1673236430360,1.89263271,17214.0,17213.0,0.00946457]
[1673236430574,1.87963271,17214.0,17213.0,0.00246457]
[1673236430849,1.89263271,17214.0,17213.0,0.00946457]
[1673236431074,1.87963271,17214.0,17213.0,0.00246457]
[1673236431319,1.89263271,17214.0,17213.0,0.00846457]
[1673236432076,1.90574947,17214.0,17213.0,0.00846457]
[1673236433627,1.90574947,17214.0,17213.0,0.00246457]
[1673236433628,1.60256723,17214.0,17213.0,0.00246457]
[1673236433876,1.61556723,17214.0,17213.0,0.00846457]
[1673236436806,1.61556723,17214.0,17213.0,0.00881569]
[1673236437063,1.61556723,17214.0,17213.0,0.00846457]
[1673236437828,1.61556723,17214.0,17213.0,0.00881569]
[1673236438093,1.61556723,17214.0,17213.0,0.00846457]
[1673236446566,1.32538596,17214.0,17213.0,0.00846457]
[1673236447062,1.31238596,17214.0,17213.0,0.00646457]
[1673236447312,1.32538596,17214.0,17213.0,0.00646457]
[1673236450006,1.31238596,17214.0,17213.0,0.00246457]
[1673236450254,1.32538596,17214.0,17213.0,0.00746457]
[1673236455807,0.60759725,17214.0,17213.0,0.00746457]
[1673236456295,0.59459725,17214.0,17213.0,0.00246457]
[1673236456544,0.60759725,17214.0,17213.0,0.18129009]
[1673236457052,0.60759725,17214.0,17213.0,0.00746457]
[1673236457293,0.60759725,17214.0,17213.0,0.18387427]
[1673236457543,0.60759725,17214.0,17213.0,0.00746457]
[1673236458049,0.60759725,17214.0,17213.0,0.18129009]
[1673236458821,0.60759725,17214.0,17213.0,0.00746457]
[1673236459369,0.89833894,17214.0,17213.0,0.00746457]
[1673236460594,0.89833894,17214.0,17213.0,0.18129009]
[1673236462876,0.89833894,17214.0,17213.0,0.18141928]
[1673236463093,0.89833894,17214.0,17213.0,0.18129009]
[1673236464862,0.89833894,17214.0,17213.0,0.18141928]
[1673236465091,0.89833894,17214.0,17213.0,0.18129009]
[1673236466628,0.88533894,17214.0,17213.0,0.17629009]
[1673236467120,0.88533894,17214.0,17213.0,0.00246457]
[1673236467370,0.89833894,17214.0,17213.0,0.00746457]
[1673236467618,0.89833894,17214.0,17213.0,0.00759376]
[1673236467857,0.89833894,17214.0,17213.0,0.00746457]
[1673236469186,0.89833894,17214.0,17213.0,0.00759376]
[1673236469950,0.89833894,17214.0,17213.0,0.18141928]
[1673236470202,0.89833894,17214.0,17213.0,0.17629009]
[1673236471006,0.89833894,17214.0,17213.0,0.00246457]
[1673236471196,0.89833894,17214.0,17213.0,0.17641928]
[1673236471703,0.89833894,17214.0,17213.0,0.17629009]
[1673236472175,0.60814291,17214.0,17213.0,0.17629009]